bitfinex/quotes_ETHUSD_20230403
["timestamp","ask_amount","ask_price","bid_price","bid_amount"]
[1680554403572,1.48387075,1792.8,1792.7,17.65457789]
[1680554403811,0.09274192,1792.8,1792.7,17.64857789]
[1680554404020,0.09274192,1792.8,1792.7,23.44757789]
[1680554404313,0.09274192,1792.8,1792.7,22.44757789]
[1680554404664,0.09274192,1792.8,1792.7,23.44757789]
[1680554405205,0.00074192,1792.8,1792.7,23.44757789]
[1680554405397,0.00074192,1792.8,1792.7,24.61322178]
[1680554405709,0.00074192,1792.8,1792.7,23.44757789]
[1680554405910,0.11000001,1793.1,1793.0,16.20188]
[1680554406115,0.11000001,1793.2,1793.1,6.72053]
[1680554406301,0.11000001,1793.2,1793.1,9.48655218]
[1680554406612,0.11000001,1793.2,1793.1,47.48655218]
[1680554406811,0.11000001,1793.2,1793.1,46.65002218]
[1680554407108,0.11000001,1793.2,1793.1,37.76602218]
[1680554407410,0.11000001,1793.2,1793.1,35.0]
[1680554408206,0.11000001,1793.2,1793.0,0.095]
[1680554408401,0.11000001,1793.2,1793.0,3.13787218]
[1680554408600,0.11000001,1793.2,1793.0,2.85902218]
[1680554408902,0.11000001,1793.2,1793.0,0.093]
[1680554409223,0.59578467,1793.1,1793.0,0.093]
[1680554409585,0.59578467,1793.1,1793.0,0.37186]
[1680554409786,0.59578467,1793.1,1793.0,4.03278818]
[1680554410000,0.11000001,1793.2,1793.0,7.03278818]
[1680554410203,0.11000001,1793.2,1793.0,4.03278818]
[1680554410904,0.11000001,1793.2,1793.1,2.76602218]
[1680554411114,0.11000001,1793.2,1793.1,4.71793218]
[1680554411308,0.11000001,1793.2,1793.1,6.927074]
[1680554411934,0.11000001,1793.2,1793.1,5.811694]
[1680554412104,0.11000001,1793.2,1793.1,3.60255218]
[1680554412298,0.11000001,1793.2,1793.1,3.04486218]
[1680554412719,1.34500001,1793.2,1793.0,0.098]
[1680554413045,1.34500001,1793.2,1792.8,0.55776]
[1680554413191,1.34500001,1793.2,1792.9,0.27887]
[1680554413192,0.11000001,1793.2,1792.9,0.27887]
[1680554413737,0.11000001,1793.2,1792.8,7.30064018]
[1680554413887,0.11000001,1793.2,1792.7,35.28089]
[1680554413888,0.61470134,1793.1,1792.7,35.28089]
[1680554414091,0.61470134,1793.1,1792.7,37.76602218]
[1680554414321,0.63733675,1793.1,1792.7,37.76602218]
[1680554414837,0.63733675,1793.1,1792.7,35.0]
[1680554415187,0.91617675,1793.1,1792.7,35.0]
[1680554415629,1.24,1793.0,1792.7,35.0]
[1680554416147,1.242,1792.8,1792.6,0.002]
[1680554416447,1.242,1792.8,1792.5,0.006]
[1680554416448,1.236,1792.7,1792.2,11.95937]
[1680554416731,1.236,1792.7,1792.4,0.27895]
[1680554417831,1.236,1792.7,1792.3,4.24090918]
[1680554418912,1.236,1792.7,1792.2,9.17098]
[1680554419120,1.236,1792.7,1792.2,8.92900218]
[1680554419805,0.61261758,1792.6,1792.2,8.65002218]
[1680554420327,0.61261758,1792.6,1792.2,8.92900218]
[1680554420826,1.51491,1792.7,1792.1,0.008]
[1680554420987,0.56378,1792.8,1792.1,0.27898]
[1680554420988,1.245,1792.5,1792.1,0.27898]
[1680554421189,1.245,1792.5,1792.0,3.83701]
[1680554421406,1.245,1792.5,1792.0,4.4206083]
[1680554422140,1.245,1792.5,1792.0,13.07063048]
[1680554423332,0.02263541,1792.4,1791.9,5.892]
[1680554423540,0.02263541,1792.4,1791.9,3.60310218]
[1680554423844,0.02263541,1792.4,1791.9,3.04504218]
[1680554423845,1.242,1792.3,1791.9,3.04504218]
[1680554424054,1.242,1792.3,1791.8,11.91435301]
[1680554424055,0.02263541,1792.2,1791.8,11.31852]
[1680554424213,0.02263541,1792.2,1791.8,11.31052]
[1680554425028,0.02263541,1792.2,1791.9,2.76602218]
[1680554425232,0.02263541,1792.2,1792.0,0.27901]
[1680554425453,0.02263541,1792.2,1792.0,0.83704]
[1680554425751,1.242,1792.3,1792.0,0.83704]
[1680554425933,1.241,1792.5,1792.0,0.83704]
[1680554426250,2.235,1792.5,1792.0,0.83704]
[1680554427860,1.245,1792.3,1792.0,0.83704]
[1680554428372,1.245,1792.3,1792.0,0.27901]
[1680554429469,1.235,1792.1,1792.0,0.27901]
[1680554429677,1.235,1792.1,1791.8,3.55809]
[1680554429826,1.235,1792.1,1791.9,0.27903]
[1680554432156,0.02263541,1792.1,1791.8,3.27903]
[1680554432845,0.02263541,1792.1,1791.8,3.83712]
[1680554433536,0.02263541,1792.1,1791.8,12.48714218]
[1680554433839,0.81820376,1792.0,1791.8,12.48714218]
[1680554434054,0.81820376,1792.0,1791.8,15.5577594]
[1680554434471,0.81820376,1792.0,1791.9,2.76602218]
[1680554434681,0.81820376,1792.0,1791.9,9.48711218]
[1680554434980,1.241,1792.4,1791.9,9.48711218]
[1680554434981,1.233,1792.4,1791.9,2.76602218]
[1680554435161,1.51196,1792.4,1791.9,4.32199812]
[1680554435480,1.51196,1792.4,1791.9,2.77202218]
[1680554435481,1.50971684,1792.4,1791.9,2.77202218]
[1680554435868,1.245,1792.2,1791.9,2.77202218]
[1680554436576,1.245,1792.2,1791.9,0.006]
[1680554437220,1.245,1792.2,1791.9,0.28503]
[1680554437510,1.245,1792.2,1791.9,9.31936418]
[1680554437667,1.245,1792.2,1791.9,0.006]
[1680554438078,1.195,1792.2,1791.9,0.002]
[1680554438284,1.47398,1792.2,1791.7,22.9248]
[1680554438484,1.49661541,1792.2,1791.7,27.99350218]
[1680554439277,1.0,1792.1,1791.7,0.006]
[1680554439473,1.0,1791.7,1791.3,0.006]
[1680554439724,1.0,1791.7,1791.1,0.1]
[1680554439725,9.65002218,1791.7,1791.1,0.1]
[1680554440017,0.83737,1791.3,1791.1,0.1]
[1680554440224,0.27912,1791.4,1791.1,0.1]
[1680554440386,1.235,1791.3,1791.1,0.1]
[1680554440934,0.02263541,1791.4,1791.1,0.1]
[1680554441077,0.02263541,1791.4,1791.1,0.7084]
[1680554441431,0.02263541,1791.4,1791.1,0.1]
[1680554442500,0.02263541,1791.4,1791.2,2.76602218]
[1680554442916,0.02263541,1791.4,1791.1,0.102]
[1680554443117,0.02263541,1791.4,1791.1,0.1]
[1680554444625,0.02263541,1791.4,1791.1,0.37915]
[1680554444797,0.02263541,1791.4,1791.1,0.1]
[1680554445322,0.02263541,1791.4,1791.1,9.02917218]
[1680554445519,0.02263541,1791.4,1791.2,0.90291722]
[1680554445942,0.02263541,1791.4,1791.1,2.86602218]
[1680554446465,1.244,1791.7,1791.3,0.27912]
[1680554446671,1.242,1791.7,1791.3,8.92914218]
[1680554446871,1.242,1791.7,1791.3,9.8778834]
[1680554447091,1.242,1791.7,1791.3,10.4361334]
[1680554447221,1.142,1791.7,1791.3,9.8838834]
[1680554448538,1.142,1791.7,1791.3,9.6047634]
[1680554448738,1.42106,1791.7,1791.3,9.6047634]
[1680554449273,1.44369541,1791.7,1791.3,9.6047634]
[1680554449513,1.16463541,1791.7,1791.4,0.96047634]
[1680554449784,1.16463541,1791.7,1791.4,0.96647634]
[1680554450086,0.97852767,1791.6,1791.4,0.96647634]
[1680554450845,0.97852767,1791.6,1791.4,0.006]
[1680554451262,1.25760767,1791.6,1791.3,0.006]
[1680554451435,1.245,1791.5,1791.3,0.006]
[1680554452185,1.235,1791.4,1791.2,0.28514]
[1680554452393,1.235,1791.4,1791.2,0.619495]
[1680554452742,1.235,1791.4,1791.2,0.006]
[1680554453087,0.27911,1791.4,1791.1,0.106]
[1680554453438,0.55822,1791.4,1791.1,0.106]
[1680554453787,1.245,1791.3,1791.1,0.106]
[1680554454094,1.242,1791.2,1791.1,0.1]
[1680554454253,2.07942,1791.2,1791.1,0.1]
[1680554455046,1.52114,1791.2,1791.1,0.1]
[1680554455755,2.07942,1791.2,1791.1,0.1]
[1680554456396,2.10205541,1791.2,1791.1,0.1]
[1680554457650,3.56505541,1791.2,1791.1,0.1]
[1680554457994,17.82007759,1791.2,1791.1,0.1]
[1680554458195,25.82207759,1791.2,1791.1,0.1]
[1680554459197,6.56805541,1791.2,1791.1,0.1]
[1680554459339,1.245,1791.2,1791.1,0.1]
[1680554459544,1.24,1791.3,1791.1,0.1]
[1680554459992,1.24,1791.3,1791.1,0.37915]
[1680554460302,1.24,1791.3,1791.1,0.203749]
[1680554460501,1.24,1791.3,1791.1,0.1]
[1680554460994,1.51912,1791.3,1791.1,0.106]
[1680554461180,1.51912,1791.3,1791.1,0.1]
[1680554461961,1.242,1791.2,1791.1,0.1]
[1680554462147,2.483,1791.2,1791.1,0.1]
[1680554463651,1.247,1791.4,1791.1,0.1]
[1680554463847,1.52411,1791.4,1791.1,0.1]
[1680554464152,0.9182435,1791.2,1791.1,0.1]
[1680554464350,2.1602435,1791.2,1791.1,0.1]
[1680554467262,3.67015364,1791.2,1791.1,0.1]
[1680554467477,4.22843364,1791.2,1791.1,0.1]
[1680554467678,7.22843364,1791.2,1791.1,0.1]
[1680554467906,7.25306905,1791.2,1791.1,0.1]
[1680554468484,8.25306905,1791.2,1791.1,0.1]
[1680554468685,22.73309123,1791.2,1791.0,0.1]
[1680554468883,8.47102218,1791.1,1791.0,0.1]
[1680554469106,10.42711218,1791.1,1791.0,0.1]
[1680554469462,1.0,1791.0,1790.8,0.1]
[1680554469735,4.6743,1790.9,1790.8,0.1]
[1680554470215,7.6743,1790.9,1790.8,0.1]
[1680554470421,7.6763,1790.9,1790.8,0.1]
[1680554470766,7.69893541,1790.9,1790.8,0.1]
[1680554471166,6.45393541,1790.9,1790.8,0.1]
[1680554471415,15.10395759,1790.9,1790.8,0.1]
[1680554471788,17.33795759,1790.9,1790.8,0.1]
[1680554471984,15.10395759,1790.9,1790.8,0.1]
[1680554472997,9.21995759,1790.9,1790.8,0.1]
[1680554473803,15.10395759,1790.9,1790.8,0.1]
[1680554474597,6.45393541,1790.9,1790.8,0.1]
[1680554474912,7.37118636,1790.9,1790.8,0.1]
[1680554475324,16.02120854,1790.9,1790.8,0.1]
[1680554475490,18.25520854,1790.9,1790.8,0.1]
[1680554475902,10.13720854,1790.9,1790.8,0.1]
[1680554476256,7.37118636,1790.9,1790.8,0.1]
[1680554478446,6.25443636,1790.9,1790.8,0.1]
[1680554483425,6.25443636,1790.9,1790.8,0.09709473]
[1680554485160,8.48843636,1790.9,1790.8,0.09709473]
[1680554489044,8.49443636,1790.9,1790.8,0.09709473]
[1680554489244,8.48843636,1790.9,1790.8,0.09709473]
[1680554489554,6.25443636,1790.9,1790.8,0.09709473]
[1680554489759,8.48843636,1790.9,1790.8,0.09709473]
[1680554489984,6.25443636,1790.9,1790.8,0.09709473]
[1680554490287,4.19843095,1790.9,1790.8,0.09709473]
[1680554490491,1.19643095,1790.9,1790.8,0.09709473]
[1680554491014,0.91725095,1790.9,1790.8,0.09709473]
[1680554491378,1.19643095,1790.9,1790.8,0.09709473]
[1680554492819,1.75480095,1790.9,1790.8,0.09709473]
[1680554493119,7.99682313,1790.9,1790.8,0.09709473]
[1680554493323,7.99882313,1790.9,1790.8,0.09709473]
[1680554493826,16.90545854,1790.9,1790.8,0.09709473]
[1680554493990,17.13545854,1790.9,1790.8,0.09709473]
[1680554498544,17.68355119,1790.9,1790.8,0.09709473]
[1680554502196,6.79952901,1790.9,1790.8,0.09709473]
[1680554502411,0.91925095,1790.9,1790.8,0.09709473]
[1680554502616,0.91725095,1790.9,1790.8,0.09709473]
[1680554503900,10.43245803,1791.2,1790.8,0.09709473]
[1680554504212,3.27916,1791.1,1790.8,0.09709473]
[1680554504793,1.17806104,1791.0,1790.8,0.09709473]
[1680554505044,0.89888104,1791.0,1790.8,0.09709473]
[1680554505541,0.89888104,1791.0,1790.8,0.5373242]
[1680554505842,0.27912,1791.3,1790.8,0.2581242]
[1680554505990,0.27912,1791.3,1790.8,11.3566242]
[1680554506191,0.83737,1791.3,1790.8,11.3566242]
[1680554506742,0.83354966,1791.3,1790.8,11.3626242]
[1680554506906,0.27529966,1791.3,1790.9,1.13626242]
[1680554507235,0.27529966,1791.3,1790.9,1.14226242]
[1680554507437,0.002,1791.5,1790.9,1.42144242]
[1680554507646,3.0,1791.5,1791.0,0.14214424]
[1680554507803,3.27909,1791.5,1791.0,0.14814424]
[1680554508011,3.27909,1791.5,1791.0,0.42731424]
[1680554508208,3.27909,1791.5,1791.0,0.14814424]
[1680554508411,3.2791,1791.5,1791.0,0.14814424]
[1680554509007,0.90465852,1791.4,1791.0,0.42730424]
[1680554509253,0.90465852,1791.4,1791.0,0.98564424]
[1680554509542,0.90465852,1791.4,1791.1,0.09856442]
[1680554509746,0.90465852,1791.4,1791.1,0.004]
[1680554509924,0.27909,1791.5,1791.1,0.006]
[1680554510314,30.11109,1791.6,1791.1,0.006]
[1680554510494,0.28109,1791.6,1791.1,0.006]
[1680554510698,0.27909,1791.6,1791.0,0.14814424]
[1680554510938,0.27909,1791.6,1791.0,0.42731424]
[1680554511147,3.66560548,1791.7,1791.0,3.19333642]
[1680554511300,4.22372548,1791.7,1791.1,0.31933364]
[1680554511647,4.22372548,1791.7,1791.1,0.32533364]
[1680554512812,13.98999766,1791.7,1791.1,0.32533364]
[1680554513014,15.10774766,1791.7,1791.1,0.28515]
[1680554513413,15.10774766,1791.7,1791.1,0.006]
[1680554513656,4.20309007,1791.7,1791.1,2.77202218]
[1680554513848,4.20109007,1791.7,1791.1,2.77202218]
[1680554514008,4.20109007,1791.7,1791.2,0.27720222]
[1680554514207,4.20109007,1791.7,1791.2,0.28320222]
[1680554515935,4.20109007,1791.7,1791.1,0.006]
[1680554516232,4.22372548,1791.7,1791.1,0.006]
[1680554519416,4.00029348,1791.7,1791.1,0.006]
[1680554521410,1.00029348,1791.7,1791.1,0.006]
[1680554521845,1.00029348,1791.7,1791.1,0.28515]
[1680554522054,1.00029348,1791.7,1791.1,0.70263342]
[1680554522256,1.00029348,1791.7,1791.1,0.98178342]
[1680554522726,1.00029348,1791.7,1791.1,0.70263342]
[1680554522913,1.00029348,1791.7,1791.1,0.98178342]
[1680554523111,0.44217348,1791.7,1791.1,0.98178342]
[1680554523424,0.44217348,1791.7,1791.2,0.09817834]
[1680554523630,0.44217348,1791.7,1791.2,0.93558834]
[1680554523631,0.14046807,1791.7,1791.2,0.93558834]
[1680554523845,0.14046807,1791.7,1791.2,0.38330834]
[1680554524041,0.41952807,1791.7,1791.2,11.01887834]
[1680554524756,0.97764807,1791.7,1791.2,11.01887834]
[1680554524959,0.90152726,1791.6,1791.2,11.01887834]
[1680554525167,0.90152726,1791.6,1791.2,10.9207]
[1680554525460,1.18060726,1791.6,1791.2,0.006]
[1680554525764,1.73876726,1791.6,1791.1,0.006]
[1680554526444,1.18060726,1791.6,1791.1,0.006]
[1680554526963,1.73876726,1791.6,1791.1,0.006]
[1680554527521,5.12240267,1791.6,1791.1,0.006]
[1680554527723,1.76340267,1791.6,1791.1,0.006]
[1680554527928,1.76140267,1791.6,1791.1,0.006]
[1680554528182,1.20324267,1791.6,1791.1,0.006]
[1680554528487,0.92416267,1791.6,1791.1,10.05498869]
[1680554528637,0.89942936,1791.6,1791.1,10.05498869]
[1680554529717,0.89942936,1791.6,1791.3,2.08236]
[1680554529922,0.89942936,1791.6,1791.3,4.85438218]
[1680554530838,5.48479101,1792.0,1791.3,4.85438218]
[1680554531059,5.64997561,1792.0,1791.4,11.78583822]
[1680554531232,5.64997561,1792.0,1791.4,12.07093822]
[1680554531430,0.27718461,1792.0,1791.5,2.76602218]
[1680554531682,0.27518461,1792.0,1791.6,0.27907]
[1680554531975,0.27518461,1792.0,1791.6,0.30450922]
[1680554532641,0.55419461,1792.0,1791.6,0.30450922]
[1680554532981,0.84796927,1791.9,1791.5,0.27909]
[1680554533278,0.84796927,1791.9,1791.5,0.28509]
[1680554533428,0.84796927,1791.9,1791.5,1.54800382]
[1680554535776,0.84796927,1791.9,1791.5,1.26891382]
[1680554537043,0.84796927,1791.9,1791.5,1.54800382]
[1680554537241,0.84796927,1791.9,1791.5,0.28509]
[1680554538389,0.84796927,1791.9,1791.5,0.84328]
[1680554538790,0.84796927,1791.9,1791.6,8.65002218]
[1680554539091,0.84796927,1791.9,1791.7,0.83718]
[1680554539444,0.84796927,1791.9,1791.8,5.96434218]
[1680554539605,0.84796927,1791.9,1791.8,7.1491764]
[1680554539937,0.11000001,1792.0,1791.8,7.1551764]
[1680554540138,0.11000001,1792.0,1791.8,18.5896764]
[1680554540512,0.11000001,1792.0,1791.8,24.4736764]
[1680554540837,0.11000001,1792.0,1791.8,25.4676764]
[1680554541035,0.11000001,1792.0,1791.9,8.43076764]
[1680554541209,0.11000001,1792.0,1791.9,17.95207982]
[1680554541405,0.11000001,1792.0,1791.9,19.19207982]
[1680554543677,0.11000001,1792.0,1791.9,22.19207982]
[1680554544694,1e-08,1792.0,1791.9,23.66107982]
[1680554548347,1e-08,1792.0,1791.9,23.66107982]
[1680554551434,1e-08,1792.0,1791.9,24.99907982]
[1680554551947,1e-08,1792.0,1791.9,23.66107982]
[1680554552246,1e-08,1792.0,1791.9,22.42707982]
[1680554552947,1e-08,1792.0,1791.9,22.19707982]
[1680554554606,1e-08,1792.0,1791.9,22.42707982]
[1680554557099,1e-08,1792.0,1791.9,23.76507982]
[1680554561322,1e-08,1792.0,1791.9,31.76507982]
[1680554562723,1e-08,1792.0,1791.9,31.76707982]
[1680554562924,1e-08,1792.0,1791.9,31.77107982]
[1680554564341,0.11000001,1792.4,1792.3,6.884]
[1680554564524,0.11000001,1792.4,1792.3,19.54492218]
[1680554564718,0.11000001,1792.4,1792.3,30.91892218]
[1680554564932,0.11000001,1792.4,1792.3,31.02292218]
[1680554565425,0.11000001,1792.4,1792.3,36.79452218]
[1680554565747,0.11000001,1792.4,1792.3,36.56452218]
[1680554565920,0.11000001,1792.4,1792.3,34.22652218]
[1680554566119,0.11000001,1792.4,1792.3,35.22652218]
[1680554568567,0.11000001,1792.4,1792.3,35.45652218]
[1680554568778,0.11000001,1792.4,1792.3,35.22652218]
[1680554573779,0.13263542,1792.4,1792.3,16.09281218]
[1680554574004,0.13263542,1792.4,1792.2,0.002]
[1680554574187,0.13263542,1792.4,1792.0,10.9491]
[1680554574500,0.13263542,1792.4,1792.1,0.83699]
[1680554574898,0.74639285,1792.3,1792.1,0.83699]
[1680554575270,1.242,1792.2,1792.0,0.002]
[1680554575603,1.242,1792.2,1791.9,0.27902]
[1680554575764,0.00397051,1792.0,1791.9,0.27902]
[1680554576270,0.00397051,1792.0,1791.9,10.10340418]
[1680554576683,0.00397051,1792.0,1791.9,16.07180418]
[1680554577090,0.00397051,1792.0,1791.9,16.30180418]
[1680554577472,0.00397051,1792.0,1791.9,19.30180418]
[1680554577871,0.00397051,1792.0,1791.9,19.07180418]
[1680554578067,0.00397051,1792.0,1791.9,18.51374418]
[1680554578270,0.00397051,1792.0,1791.9,19.07180418]
[1680554578718,0.00397051,1792.0,1791.9,13.18780418]
[1680554578885,0.00397051,1792.0,1791.9,12.01944218]
[1680554579278,0.00397051,1792.0,1791.9,12.01344218]
[1680554579474,0.00397051,1792.0,1791.9,3.27902]
[1680554579678,0.02660592,1792.0,1791.9,0.83709]
[1680554579931,0.02660592,1792.0,1791.9,0.27903]
[1680554580091,0.02660592,1792.0,1791.9,3.60311218]
[1680554580092,0.00397051,1792.0,1791.9,3.60311218]
[1680554580292,0.00397051,1792.0,1791.9,3.04505218]
[1680554580495,0.00397051,1792.0,1791.9,0.27903]
[1680554581574,0.00397051,1792.0,1791.7,10.9511]
[1680554581778,0.02660592,1792.0,1791.7,2.76602218]
[1680554582111,0.03260592,1792.0,1791.7,3.04508218]
[1680554582430,0.00397051,1792.0,1791.7,3.60320218]
[1680554582580,0.00997051,1792.0,1791.8,2.76602218]
[1680554583017,0.00397051,1792.0,1791.8,2.76602218]
[1680554583217,0.00997051,1792.0,1791.8,2.76602218]
[1680554584027,0.73659793,1791.9,1791.8,2.76602218]
[1680554585031,0.73659793,1791.9,1791.7,0.002]
[1680554585179,0.73659793,1791.9,1791.8,0.27904]
[1680554585586,0.73659793,1791.9,1791.8,3.04506218]
[1680554585929,0.73659793,1791.9,1791.8,10.4358704]
[1680554588093,0.73659793,1791.9,1791.8,13.6658704]
[1680554588853,0.73330864,1791.9,1791.8,13.6658704]
[1680554588991,0.00397051,1792.0,1791.8,13.6658704]
[1680554589207,0.00397051,1792.0,1791.9,8.65002218]
[1680554589403,0.00397051,1792.0,1791.9,10.85369922]
[1680554589782,0.06397052,1792.4,1791.9,10.85969922]
[1680554590400,0.06397052,1792.4,1791.9,4.97569922]
[1680554591028,0.68998326,1792.3,1791.9,4.97569922]
[1680554592128,1.29997052,1792.4,1791.9,4.97569922]
[1680554592425,1.29997052,1792.4,1792.1,0.27899]
[1680554593584,1.29997052,1792.4,1792.0,0.27901]
[1680554593912,1.29997052,1792.4,1792.1,0.279]
[1680554594431,1.29997052,1792.4,1791.9,3.33008218]
[1680554594741,1.29997052,1792.4,1792.1,0.279]
[1680554595036,1.29997052,1792.4,1792.0,0.27901]
[1680554595195,1.29997052,1792.4,1791.9,0.83707]
[1680554597112,1.24,1792.2,1791.9,0.83707]
[1680554597428,1.24,1792.2,1791.9,0.84307]
[1680554598139,1.24,1792.2,1791.9,0.28501]
[1680554599137,1.24,1792.2,1791.9,0.006]
[1680554599303,1.24,1792.2,1791.8,0.28504]
[1680554599505,1.93082611,1792.3,1791.8,0.28504]
[1680554600016,1.245,1791.9,1791.8,0.006]
[1680554600321,1.245,1791.9,1791.5,0.27908]
[1680554600322,1.245,1791.9,1791.5,0.006]
[1680554600489,1.24,1791.7,1791.5,0.006]
[1680554600699,1.24,1791.6,1791.4,0.006]
[1680554600964,1.5141,1791.5,1791.2,0.006]
[1680554601091,1.235,1791.5,1791.2,0.006]
[1680554601293,1.235,1791.5,1791.1,0.006]
[1680554601923,1.235,1791.5,1791.1,0.28515]
[1680554602128,1.235,1791.4,1791.1,0.27915]
[1680554602445,1.235,1791.4,1791.1,0.28515]
[1680554605140,1.235,1791.4,1791.1,0.006]
[1680554605336,1.235,1791.4,1791.1,0.28515]
[1680554605636,1.235,1791.4,1791.1,0.84346]
[1680554605838,1.25563541,1791.6,1791.1,3.69382818]
[1680554606008,1.25563541,1791.6,1791.2,2.76602218]
[1680554606208,1.25563541,1791.6,1791.3,0.27912]
[1680554606809,1.25563541,1791.6,1791.2,3.05114218]
[1680554607223,1.25563541,1791.6,1791.2,2.77202218]
[1680554607394,1.25563541,1791.6,1791.2,3.05116218]
[1680554608413,1.25563541,1791.6,1791.2,2.77202218]
[1680554608631,1.53471541,1791.6,1791.2,2.77202218]
[1680554608841,1.53471541,1791.6,1791.2,0.006]
[1680554609035,1.53471541,1791.6,1791.0,0.006]
[1680554609332,1.53471541,1791.6,1791.1,2.76602218]
[1680554609644,1.53471541,1791.6,1791.1,2.77202218]
[1680554610509,2.09287541,1791.6,1791.1,0.006]
[1680554610728,1.24,1791.4,1791.0,0.28516]
[1680554611658,1.24,1791.4,1791.0,0.006]
[1680554612044,1.51911,1791.4,1791.0,0.006]
[1680554612227,1.24,1791.4,1791.0,0.28516]
[1680554613128,1.23777454,1791.4,1791.0,0.27916]
[1680554614012,0.67229372,1791.3,1791.0,0.27916]
[1680554614553,0.67229372,1791.3,1790.9,6.4703]
[1680554614752,0.67229372,1791.3,1791.0,0.64703]
[1680554615053,1.23777454,1791.4,1791.0,0.65303]
[1680554615263,1.23777454,1791.4,1791.0,0.64703]
[1680554615473,1.23777454,1791.4,1791.0,0.9262]
[1680554615768,1.23777454,1791.4,1791.0,0.65303]
[1680554615940,1.23777454,1791.4,1791.1,0.065303]
[1680554617159,0.02263541,1791.5,1791.1,0.344453]
[1680554617366,1.26263541,1791.5,1791.1,0.344453]
[1680554617881,1.26263541,1791.5,1791.1,3.11047518]
[1680554618090,31.11107,1791.7,1791.1,3.11047518]
[1680554618091,31.073,1791.7,1791.2,2.76602218]
[1680554618287,1.237,1791.7,1791.3,0.55571222]
[1680554618434,1.235,1791.7,1791.3,0.55571222]
[1680554619062,1.235,1791.7,1791.3,0.55572222]
[1680554619558,1.235,1791.7,1791.4,0.05557222]
[1680554620062,1.235,1791.7,1791.4,0.33468222]
[1680554620761,1.235,1791.7,1791.4,0.05557222]
[1680554620979,1.235,1791.7,1791.3,0.27660222]
[1680554621490,1.54668541,1791.8,1791.3,0.27660222]
[1680554622132,1.24,1791.7,1791.3,0.27660222]
[1680554622333,1.51906,1791.7,1791.3,0.27660222]
[1680554622575,1.24,1791.7,1791.3,0.27660222]
[1680554623147,1.26763541,1791.8,1791.3,3.8799944]
[1680554623345,1.26763541,1791.8,1791.4,0.38799944]
[1680554623648,1.26763541,1791.8,1791.5,0.27909]
[1680554627640,1.26763541,1791.8,1791.3,0.28460222]
[1680554627954,1.245,1791.6,1791.2,16.40673]
[1680554628171,1.245,1791.6,1791.2,19.17275218]
[1680554629239,1.245,1791.6,1791.2,19.73103218]
[1680554629864,0.72170692,1791.5,1791.2,19.73103218]
[1680554630072,0.72170692,1791.5,1791.3,1.97310322]
[1680554630253,0.72170692,1791.5,1791.3,2.25222322]
[1680554630651,0.72170692,1791.5,1791.4,2.76602218]
[1680554630851,29.838,1792.0,1791.4,10.60379218]
[1680554631079,0.002,1792.0,1791.4,10.60979218]
[1680554631367,12.57006807,1792.1,1791.6,0.27907]
[1680554631697,2.81916807,1792.1,1791.6,0.27907]
[1680554631844,2.81716807,1792.1,1791.6,0.27907]
[1680554632047,2.81116807,1792.1,1791.6,1.04946392]
[1680554632371,2.81116807,1792.1,1791.6,1.60762392]
[1680554633165,2.80732268,1792.1,1791.6,1.61362392]
[1680554634892,2.80732268,1792.1,1791.6,12.01552392]
[1680554636543,1.80732268,1792.1,1791.6,12.01552392]
[1680554636778,1.80732268,1792.1,1791.7,1.20155239]
[1680554636974,1.80732268,1792.1,1791.7,1.48660239]
[1680554638492,1.242,1792.1,1791.7,1.48660239]
[1680554639493,1.242,1792.1,1791.7,0.28505]
[1680554639991,1.242,1792.1,1791.7,0.006]
[1680554640174,2.242,1792.1,1791.7,0.006]
[1680554640381,2.521,1792.1,1791.7,0.006]
[1680554640556,1.51903,1791.9,1791.6,0.006]
[1680554640762,1.51903,1791.9,1791.5,0.006]
[1680554641165,1.24,1791.9,1791.5,0.006]
[1680554641700,0.27905,1791.8,1791.3,0.006]
[1680554641846,0.27905,1791.8,1791.3,2.76602218]
[1680554642053,2.242,1791.7,1791.3,0.006]
[1680554642414,1.236,1791.4,1791.3,0.006]
[1680554642547,1.236,1791.4,1791.0,0.006]
[1680554642743,1.51511,1791.4,1791.0,0.006]
[1680554644186,0.99385486,1791.3,1790.9,0.106]
[1680554644768,1.57474027,1791.3,1790.9,0.106]
[1680554645183,1.01649027,1791.3,1790.9,0.106]
[1680554645770,0.73736027,1791.3,1790.9,0.106]
[1680554645970,0.73736027,1791.3,1790.9,0.38518]
[1680554646406,0.73736027,1791.3,1790.9,0.106]
[1680554647156,1.01649027,1791.3,1790.9,0.106]
[1680554648009,1.01649027,1791.3,1790.9,0.38518]
[1680554648010,0.73736027,1791.3,1790.9,0.38518]
[1680554648360,0.73736027,1791.3,1790.9,0.106]
[1680554650104,0.71472486,1791.3,1790.9,1.0695553]
[1680554650405,0.71472486,1791.3,1790.9,0.5111853]
[1680554650619,0.71472486,1791.3,1790.9,0.106]
[1680554650962,1.51511,1791.4,1790.9,0.38518]
[1680554651189,1.236,1791.4,1790.9,0.38518]
[1680554651421,1.236,1791.4,1790.9,0.94355]
[1680554651705,1.236,1791.4,1790.9,1.1253913]
[1680554651908,9.7499,1791.5,1790.9,3.89141348]
[1680554652314,0.002,1791.5,1790.9,3.89141348]
[1680554652529,32.074,1791.6,1790.9,3.89141348]
[1680554653098,32.35308,1791.6,1790.9,3.89141348]
[1680554653275,34.58508,1791.6,1790.9,3.89141348]
[1680554653680,0.02263541,1791.5,1790.9,3.89141348]
[1680554653878,0.02263541,1791.5,1791.1,0.27915]
[1680554654597,31.35308,1791.6,1791.5,0.00370945]
[1680554654598,29.832,1791.6,1791.5,0.00370945]
[1680554654819,0.002,1791.6,1791.5,0.00370945]
[1680554655027,15.91915874,1791.7,1791.5,0.00370945]
[1680554655721,1.38405874,1791.7,1791.5,0.00370945]
[1680554655928,1.38205874,1791.7,1791.5,0.28279945]
[1680554656133,0.02263541,1791.8,1791.5,0.84098945]
[1680554657572,0.02263541,1791.8,1791.5,0.9256884]
[1680554658915,0.71669254,1791.7,1791.5,0.9256884]
[1680554659814,0.71297677,1791.7,1791.5,0.3674984]